bitfinex-derivatives/quotes_BTCF0:USTF0_20241218
["timestamp","ask_amount","ask_price","bid_price","bid_amount"]
[1734487164309,0.3608,105170.0,105150.0,0.06677571]
[1734487164697,0.3608,105170.0,105160.0,0.0001129]
[1734487165904,0.57487228,105170.0,105160.0,0.0001129]
[1734487166407,0.82734128,105170.0,105130.0,0.35112]
[1734487166612,0.7216,105140.0,105130.0,0.35112]
[1734487167510,0.7216,105140.0,105130.0,0.00010455]
[1734487167704,0.769145,105140.0,105130.0,0.00010455]
[1734487168215,0.7216,105140.0,105130.0,0.00010455]
[1734487168912,0.047542,105150.0,105130.0,0.00010455]
[1734487168913,0.3608,105150.0,105140.0,0.047544]
[1734487169217,0.3608,105150.0,105130.0,0.30010455]
[1734487169218,0.3608,105160.0,105130.0,0.82744583]
[1734487169412,0.3608,105160.0,105150.0,0.04754]
[1734487169710,0.3608,105160.0,105130.0,0.04765455]
[1734487170021,0.3608,105140.0,105130.0,0.34765455]
[1734487170213,0.00142692,105170.0,105160.0,0.047539]
[1734487170407,0.0005,105190.0,105160.0,1.059419]
[1734487170608,0.00142658,105210.0,105200.0,0.047521]
[1734487170910,0.0005,105200.0,105180.0,0.3608]
[1734487171113,0.0005,105200.0,105190.0,0.047525]
[1734487171319,0.0005,105200.0,105190.0,0.57486628]
[1734487171613,0.00142658,105210.0,105200.0,0.047521]
[1734487171803,0.3608,105240.0,105230.0,0.047504]
[1734487172004,7.906e-05,105250.0,105230.0,0.52734128]
[1734487172205,0.3608,105280.0,105260.0,0.047493]
[1734487172414,0.3608,105280.0,105250.0,0.047497]
[1734487172711,0.74932583,105290.0,105260.0,0.047494]
[1734487172914,0.58230455,105290.0,105270.0,0.047489]
[1734487173104,0.22150455,105290.0,105280.0,0.047485]
[1734487173310,0.22150455,105290.0,105280.0,0.04756164]
[1734487173515,0.1,105300.0,105290.0,0.04748]
[1734487173815,0.4608,105300.0,105280.0,0.04755964]
[1734487174025,0.3608,105290.0,105280.0,7.664e-05]
[1734487174211,0.3608,105290.0,105280.0,0.04756164]
[1734487174408,0.1,105300.0,105290.0,0.04748]
[1734487174903,0.4608,105300.0,105290.0,0.04748]
[1734487175111,0.4608,105300.0,105280.0,0.36087664]
[1734487175306,0.4608,105300.0,105290.0,0.21402128]
[1734487175511,0.1,105300.0,105290.0,0.21402128]
[1734487175713,0.4608,105300.0,105280.0,0.36087664]
[1734487175924,0.4608,105300.0,105280.0,7.664e-05]
[1734487176219,0.4608,105300.0,105290.0,0.04748]
[1734487176617,0.4608,105300.0,105280.0,0.04756164]
[1734487176813,0.3608,105290.0,105280.0,0.04756164]
[1734487177012,0.3608,105290.0,105280.0,7.664e-05]
[1734487177318,0.508276,105300.0,105280.0,7.664e-05]
[1734487177319,0.1,105300.0,105290.0,0.04748]
[1734487177520,0.1,105300.0,105290.0,0.57493481]
[1734487177720,0.37089028,105320.0,105310.0,0.047471]
[1734487177910,0.01009028,105320.0,105310.0,0.92579909]
[1734487178110,0.00142527,105330.0,105320.0,0.047467]
[1734487178420,0.00142527,105330.0,105320.0,0.408267]
[1734487178615,0.00065,105360.0,105350.0,0.047453]
[1734487178815,0.00065,105360.0,105350.0,0.3]
[1734487179018,0.00065,105360.0,105350.0,0.70834168]
[1734487179213,0.00065,105360.0,105350.0,0.04754168]
[1734487179418,0.00065,105360.0,105350.0,8.868e-05]
[1734487179419,0.36145,105360.0,105350.0,8.868e-05]
[1734487179726,0.36145,105360.0,105350.0,0.30008868]
[1734487179727,0.00065,105360.0,105350.0,0.30008868]
[1734487180019,0.00065,105360.0,105350.0,0.34754168]
[1734487181112,0.36145,105360.0,105350.0,8.868e-05]
[1734487181314,0.00065,105360.0,105350.0,0.30008868]
[1734487181518,0.00065,105360.0,105350.0,0.34754168]
[1734487181719,0.00065,105360.0,105350.0,0.70834168]
[1734487181920,0.00065,105360.0,105350.0,0.40834168]
[1734487182117,0.00065,105360.0,105350.0,0.04754168]
[1734487182315,0.00065,105360.0,105350.0,0.34754168]
[1734487182517,0.00065,105360.0,105350.0,0.04754168]
[1734487182720,0.00065,105360.0,105350.0,0.34754168]
[1734487182925,0.00065,105360.0,105350.0,0.04754168]
[1734487184118,0.36145,105360.0,105350.0,0.04754168]
[1734487184528,0.408899,105360.0,105350.0,8.868e-05]
[1734487184733,0.36145,105360.0,105350.0,8.868e-05]
[1734487186520,0.408899,105360.0,105350.0,8.868e-05]
[1734487186724,0.047454,105350.0,105320.0,0.56476828]
[1734487186922,0.3608,105330.0,105320.0,0.56476828]
[1734487187223,0.3613,105330.0,105320.0,0.21400828]
[1734487187615,0.3613,105330.0,105320.0,0.01863325]
[1734487187920,0.3613,105330.0,105320.0,0.01873263]
[1734487188122,0.3608,105330.0,105320.0,0.01873263]
[1734487188626,0.3608,105330.0,105320.0,9.938e-05]
[1734487189621,0.82734128,105330.0,105260.0,0.38926299]
[1734487189926,0.3608,105290.0,105270.0,0.047486]
[1734487190825,0.3608,105300.0,105280.0,0.04758374]
[1734487191232,0.3608,105290.0,105280.0,0.04758374]
[1734487192623,0.3608,105290.0,105280.0,9.874e-05]
[1734487192820,9.856e-05,105310.0,105300.0,0.047476]
[1734487193033,9.856e-05,105310.0,105300.0,0.408276]
[1734487194630,9.856e-05,105310.0,105300.0,0.047476]
[1734487194825,9.856e-05,105310.0,105300.0,0.408276]
[1734487195223,9.856e-05,105310.0,105300.0,0.047476]
[1734487195938,9.856e-05,105310.0,105300.0,0.408276]
[1734487196437,0.36089856,105310.0,105290.0,0.04748]
[1734487196620,0.36089856,105310.0,105300.0,0.57481728]
[1734487196621,9.856e-05,105310.0,105300.0,0.57481728]
[1734487196822,9.856e-05,105310.0,105300.0,0.8749179]
[1734487197023,9.856e-05,105310.0,105300.0,0.34757662]
[1734487197232,9.856e-05,105310.0,105300.0,0.04757662]
[1734487197630,9.856e-05,105310.0,105300.0,0.00010062]
[1734487197828,0.36089856,105310.0,105300.0,0.00010062]
[1734487198136,0.57491084,105310.0,105300.0,0.00010062]
[1734487198432,0.047477,105300.0,105270.0,0.398008]
[1734487198628,0.3608,105280.0,105260.0,0.01896219]
[1734487198823,0.3608,105280.0,105260.0,0.06645419]
[1734487199224,0.3608,105280.0,105270.0,0.04757319]
[1734487199444,0.3608,105280.0,105270.0,8.419e-05]
[1734487200022,0.3608,105280.0,105240.0,0.408303]
[1734487200023,0.6608,105280.0,105240.0,0.408303]
[1734487200230,0.52734128,105290.0,105270.0,0.047489]
[1734487200231,0.3608,105290.0,105270.0,0.047489]
[1734487200634,0.3608,105280.0,105270.0,0.047489]
[1734487200835,0.3608,105290.0,105250.0,0.047498]
[1734487200836,0.57482228,105290.0,105250.0,0.047498]
[1734487201032,0.3608,105280.0,105260.0,0.04759897]
[1734487201433,0.3608,105270.0,105260.0,0.00010597]
[1734487201633,0.57483028,105270.0,105260.0,0.00010597]
[1734487202034,0.3608,105270.0,105260.0,0.04759997]
[1734487202430,0.3608,105280.0,105260.0,0.04759997]
[1734487202640,0.3608,105270.0,105260.0,0.00010597]
[1734487203140,0.57483028,105270.0,105260.0,0.00010597]
[1734487203643,0.047497,105260.0,105230.0,0.42730226]
[1734487203847,0.3608,105250.0,105240.0,0.047503]
[1734487204136,0.3608,105250.0,105230.0,0.01899526]
[1734487204359,0.3608,105240.0,105230.0,0.047506]
[1734487204634,0.3608,105240.0,105230.0,0.04761765]
[1734487205831,0.3608,105260.0,105230.0,0.40841765]
[1734487206039,0.3608,105280.0,105250.0,0.3608]
[1734487206341,0.3608,105300.0,105280.0,0.047481]
[1734487206537,0.3608,105290.0,105270.0,0.047489]
[1734487207736,0.3608,105280.0,105260.0,0.39821027]
[1734487207932,0.3608,105270.0,105260.0,7.627e-05]
[1734487208140,0.408289,105270.0,105260.0,7.627e-05]
[1734487208647,0.3608,105270.0,105260.0,7.627e-05]
[1734487209834,0.87483028,105270.0,105260.0,7.627e-05]
[1734487210042,0.82734128,105270.0,105230.0,0.047506]
[1734487210343,0.82734128,105270.0,105220.0,0.54667805]
[1734487210344,0.3608,105260.0,105220.0,0.54667805]
[1734487210536,0.3608,105260.0,105250.0,0.047498]
[1734487210735,0.7216,105260.0,105250.0,0.047498]
[1734487210941,0.7216,105260.0,105250.0,0.04759862]
[1734487211541,0.7216,105260.0,105250.0,0.00010062]
[1734487211736,0.769094,105260.0,105250.0,0.00010062]
[1734487211937,1.069094,105260.0,105250.0,0.00010062]
[1734487212233,1.069094,105260.0,105220.0,0.047511]
[1734487212234,0.047503,105240.0,105220.0,0.047511]
[1734487212432,0.3608,105230.0,105220.0,0.047511]
[1734487213245,0.3608,105230.0,105220.0,0.047512]
[1734487214032,0.44432,105230.0,105220.0,0.047512]
[1734487214634,0.45247,105230.0,105220.0,0.047512]
[1734487215046,0.51899,105230.0,105220.0,0.047512]
[1734487215239,0.51899,105230.0,105200.0,0.47983881]
[1734487215542,0.3608,105220.0,105200.0,0.16655881]
[1734487215736,0.3608,105210.0,105200.0,0.16655881]
[1734487216335,0.51899,105230.0,105220.0,0.047512]
[1734487216541,0.15819,105230.0,105220.0,0.047512]
[1734487217341,0.51899,105230.0,105220.0,0.047512]
[1734487217546,0.51899,105230.0,105200.0,0.56985309]
[1734487217747,0.3608,105220.0,105200.0,0.16655881]
[1734487217938,0.3608,105220.0,105200.0,0.56138507]
[1734487218349,0.3608,105220.0,105200.0,0.16655881]
[1734487218551,0.3608,105210.0,105200.0,0.56138507]
[1734487218744,0.3608,105210.0,105200.0,0.16655881]
[1734487220650,0.57485728,105210.0,105200.0,0.1]
[1734487220954,0.57485728,105210.0,105180.0,0.39482626]
[1734487220955,0.047527,105190.0,105170.0,0.39532626]
[1734487221145,0.3608,105180.0,105170.0,0.39482626]
[1734487221343,0.3608,105180.0,105160.0,0.39482626]
[1734487221344,0.40833,105180.0,105160.0,0.39482626]
[1734487221553,0.3608,105170.0,105160.0,0.39482626]
[1734487222047,0.3608,105170.0,105160.0,0.39532626]
[1734487222245,0.3608,105180.0,105160.0,0.38632064]
[1734487222440,0.3608,105180.0,105170.0,0.38581564]
[1734487222645,0.3608,105190.0,105180.0,0.04753]
[1734487222840,0.31855828,105210.0,105190.0,0.047524]
[1734487222841,0.4653,105210.0,105190.0,0.047524]
[1734487223044,0.3608,105210.0,105180.0,0.56136754]
[1734487223254,0.3608,105210.0,105200.0,0.047521]
[1734487223750,0.3608,105210.0,105190.0,0.398363]
[1734487223944,0.3608,105200.0,105190.0,0.35084]
[1734487225956,0.3608,105200.0,105190.0,0.047525]
[1734487227266,0.36222651,105220.0,105200.0,0.047521]
[1734487227755,0.36222651,105220.0,105210.0,0.047516]
[1734487228157,0.00142651,105220.0,105210.0,0.708316]
[1734487228542,0.1582605,105230.0,105210.0,0.708316]
[1734487228745,0.1582605,105230.0,105220.0,0.92573328]
[1734487228945,0.1582605,105230.0,105220.0,1.22573328]
[1734487229147,0.1582605,105230.0,105220.0,0.759192]
[1734487229342,0.1582605,105230.0,105220.0,0.398392]
[1734487229752,0.5190605,105230.0,105220.0,0.398392]
[1734487230261,0.5190605,105230.0,105210.0,0.047516]
[1734487230447,0.5190605,105230.0,105200.0,0.84891486]
[1734487230448,0.3608,105220.0,105200.0,0.84891486]
[1734487230758,0.57485728,105210.0,105180.0,0.96049489]
[1734487230959,0.57485728,105210.0,105180.0,0.61154788]
[1734487230960,0.3608,105190.0,105180.0,0.61154788]
[1734487231456,0.3608,105190.0,105180.0,0.047529]
[1734487231961,0.408326,105190.0,105170.0,0.41468026]
[1734487232161,0.3608,105180.0,105170.0,0.01916425]
[1734487233249,0.3608,105180.0,105150.0,0.42730223]
[1734487233455,0.3608,105180.0,105150.0,0.40569835]
[1734487233456,0.3608,105170.0,105150.0,0.40569835]
[1734487233647,0.3608,105160.0,105150.0,0.33919612]
[1734487233855,0.3608,105160.0,105140.0,0.73758412]
[1734487234151,0.3608,105150.0,105140.0,0.398388]
[1734487234648,0.3608,105160.0,105140.0,0.398388]
[1734487234855,0.3608,105170.0,105150.0,0.047543]
[1734487236148,0.3608,105170.0,105140.0,0.73084792]
[1734487236149,0.3608,105160.0,105140.0,0.41759592]
[1734487237959,0.3608,105150.0,105140.0,0.41759592]
[1734487238158,0.3608,105150.0,105140.0,0.06675592]
[1734487238461,0.3608,105150.0,105140.0,0.01920792]
[1734487238658,0.57488428,105150.0,105140.0,0.009]
[1734487239159,0.57488428,105150.0,105120.0,0.69111663]
[1734487239372,0.57488428,105150.0,105120.0,0.408516]
[1734487239553,0.3608,105140.0,105130.0,0.39565203]
[1734487239749,0.769148,105140.0,105120.0,0.40565203]
[1734487239956,0.3608,105130.0,105120.0,0.40565203]
[1734487240763,0.3608,105130.0,105120.0,0.01]
[1734487240764,0.57489428,105130.0,105120.0,0.01]
[1734487243454,0.3608,105130.0,105120.0,0.01]
[1734487243657,0.52734128,105130.0,105120.0,0.01]
[1734487243857,0.57489428,105130.0,105120.0,0.01]
[1734487244163,0.3608,105130.0,105120.0,0.01]
[1734487244359,0.30734145,105130.0,105120.0,0.45320903]
[1734487244754,0.3608,105130.0,105120.0,0.90376289]
[1734487244959,0.3608,105140.0,105120.0,0.90376289]
[1734487245163,0.3608,105130.0,105120.0,0.45320903]
[1734487245663,0.57489428,105130.0,105120.0,0.40565203]
[1734487246053,0.57489428,105130.0,105120.0,0.01]
[1734487246661,0.047557,105120.0,105110.0,0.22559237]
[1734487246860,0.408357,105120.0,105110.0,0.01]
[1734487247567,0.6608,105120.0,105090.0,0.27315937]
[1734487247871,0.88814128,105100.0,105090.0,0.27315937]
[1734487248063,0.88814128,105100.0,105090.0,0.28315937]
[1734487248259,0.93570728,105100.0,105090.0,0.01]
[1734487248669,0.93570728,105100.0,105080.0,0.28366737]
[1734487248971,0.3608,105090.0,105080.0,0.28366737]
[1734487249268,0.3608,105090.0,105080.0,0.28316737]
[1734487249657,0.3608,105090.0,105080.0,0.057575]
[1734487251887,0.3608,105090.0,105080.0,0.01]
[1734487253478,0.3608,105100.0,105090.0,0.047571]
[1734487253772,0.3608,105100.0,105080.0,0.01]
[1734487253773,0.047571,105090.0,105080.0,0.01]
[1734487253966,0.408371,105090.0,105080.0,0.01]
[1734487254572,0.708371,105090.0,105080.0,0.01]
[1734487254865,0.408371,105090.0,105060.0,0.55566683]
[1734487255070,0.3608,105070.0,105060.0,0.047584]
[1734487257970,0.3608,105070.0,105050.0,0.29220299]
[1734487258180,0.3608,105060.0,105050.0,0.22559237]
[1734487258374,0.40838,105070.0,105050.0,0.27318137]
[1734487258571,0.3608,105060.0,105050.0,0.27318137]
[1734487259465,0.001,105060.0,105050.0,0.28218137]
[1734487259669,0.3618,105060.0,105050.0,0.56390714]
[1734487260067,0.001,105060.0,105050.0,0.33857946]
[1734487261372,0.001,105060.0,105050.0,0.45224103]
[1734487261768,0.36087784,105080.0,105070.0,0.04758]
[1734487262275,7.784e-05,105080.0,105070.0,0.55419389]
[1734487262978,7.784e-05,105080.0,105070.0,1.00581609]
[1734487263184,7.784e-05,105080.0,105070.0,0.55419389]
[1734487263975,7.784e-05,105080.0,105070.0,1.61042959]
[1734487264176,0.3608,105110.0,105100.0,0.047566]
[1734487264575,0.3608,105110.0,105100.0,1.00629645]
[1734487264780,0.047553,105130.0,105100.0,1.00629645]
[1734487264781,0.408353,105130.0,105100.0,1.00629645]
[1734487264986,0.408353,105130.0,105110.0,0.84764025]
[1734487265275,0.708353,105130.0,105120.0,0.33931128]
[1734487265575,1.069153,105130.0,105120.0,0.33931128]
[1734487265777,0.047557,105120.0,105110.0,0.39552369]
[1734487265982,0.408357,105120.0,105110.0,0.39552369]
[1734487266182,0.708357,105120.0,105110.0,0.39552369]
[1734487266384,0.708357,105120.0,105090.0,0.04757]
[1734487266385,0.047562,105110.0,105090.0,0.89521025]
[1734487266681,0.769166,105100.0,105090.0,0.39552369]
[1734487267182,1.069166,105100.0,105070.0,0.84764025]
[1734487267379,0.769175,105080.0,105070.0,0.39552369]
[1734487267582,0.7216,105080.0,105060.0,0.44310669]
[1734487267877,0.40838,105070.0,105060.0,0.44310669]
[1734487268079,0.40838,105070.0,105060.0,0.39552369]
[1734487268376,0.3608,105070.0,105060.0,0.44310769]
[1734487269397,0.3608,105070.0,105060.0,0.047584]
[1734487270599,0.36222807,105100.0,105060.0,1.17158353]
[1734487270887,0.57491328,105090.0,105060.0,0.3608]
[1734487271069,0.3608,105080.0,105070.0,0.28340297]
[1734487271271,0.3608,105080.0,105060.0,0.28340297]
[1734487271475,0.3608,105070.0,105060.0,0.047583]
[1734487271773,0.3608,105070.0,105060.0,0.33111312]
[1734487271975,0.3608,105090.0,105070.0,0.047578]
[1734487272480,0.3608,105090.0,105070.0,0.157578]
[1734487273014,0.3608,105080.0,105070.0,0.157578]
[1734487273284,0.3608,105080.0,105050.0,0.408389]
[1734487273285,0.52734128,105080.0,105050.0,0.408389]
[1734487273477,0.57491628,105080.0,105050.0,0.408389]
[1734487274075,0.3608,105070.0,105060.0,0.28369142]
[1734487274884,0.3608,105070.0,105060.0,0.047584]
[1734487275387,0.3608,105070.0,105040.0,0.47118862]
[1734487275571,0.3608,105050.0,105040.0,0.01907206]
[1734487276209,0.769189,105050.0,105030.0,0.44513185]
[1734487276481,0.52734128,105040.0,105030.0,0.16921991]
[1734487276685,0.5095423,105040.0,105030.0,0.16921991]
[1734487277220,0.5095423,105040.0,105030.0,0.62504903]
[1734487277383,0.5095423,105040.0,105030.0,1.19314226]
[1734487277684,0.5095423,105040.0,105030.0,0.51130728]
[1734487278079,0.3608,105050.0,105030.0,0.51130728]
[1734487278285,0.3608,105060.0,105040.0,0.44506405]
[1734487278580,0.3608,105060.0,105050.0,1.0130905]
[1734487278783,0.36090544,105070.0,105060.0,0.047584]
[1734487278971,0.00010544,105070.0,105060.0,0.5021101]
[1734487280375,0.40848544,105070.0,105060.0,0.4545261]
[1734487281179,0.70848544,105070.0,105060.0,0.85188646]
[1734487281373,0.70848544,105070.0,105060.0,0.4545261]
[1734487281374,0.40848544,105070.0,105060.0,0.4545261]
[1734487281877,0.047584,105060.0,105050.0,0.4545261]
[1734487282182,0.57492528,105060.0,105050.0,0.85192608]
[1734487282411,0.57492528,105060.0,105050.0,0.39739998]
[1734487283091,0.047589,105050.0,105040.0,0.85193643]
[1734487283396,0.408389,105050.0,105040.0,0.85193643]
[1734487283692,0.408389,105050.0,105040.0,0.4545261]
[1734487283883,0.047594,105040.0,105020.0,0.057601]
[1734487284081,0.3608,105030.0,105020.0,0.057601]
[1734487284387,0.3608,105040.0,105030.0,0.047596]
[1734487285122,0.408389,105050.0,105030.0,0.408396]
[1734487285307,0.30729753,105050.0,105040.0,0.047593]
[1734487285619,0.52876993,105060.0,105040.0,0.047593]
[1734487285620,0.36222865,105060.0,105040.0,0.047593]
[1734487285808,0.36222865,105060.0,105040.0,0.408393]
[1734487286313,0.00142865,105060.0,105040.0,0.408393]
[1734487286497,0.36222865,105060.0,105040.0,0.408393]
[1734487286811,0.00142865,105060.0,105040.0,0.408393]
[1734487287007,0.36222865,105060.0,105040.0,0.408393]
[1734487287210,0.52876993,105060.0,105030.0,0.375498]
[1734487287419,0.408391,105050.0,105030.0,0.3279]
[1734487287721,0.57493628,105040.0,105020.0,0.057602]
[1734487288941,0.57493628,105040.0,105020.0,0.01]
[1734487289711,0.408398,105030.0,105020.0,0.01]
[1734487291606,0.408398,105030.0,105020.0,0.011]
[1734487292518,0.3608,105030.0,105020.0,0.011]
[1734487292709,0.408394,105040.0,105020.0,0.51230431]
[1734487292912,0.3608,105040.0,105030.0,0.047598]
[1734487293112,0.408389,105050.0,105030.0,0.047598]
[1734487293326,0.3608,105050.0,105030.0,0.047596]
[1734487293513,0.047598,105030.0,105020.0,0.97467771]
[1734487293715,0.047598,105030.0,105020.0,0.46470231]
[1734487294004,0.408398,105030.0,105020.0,0.46422751]
[1734487294429,0.047598,105030.0,105020.0,0.01]
[1734487294616,0.408398,105030.0,105020.0,0.01]
[1734487295218,0.408398,105030.0,105020.0,0.46322751]
[1734487295413,0.35488293,105030.0,105020.0,0.46322751]
[1734487295614,0.40248093,105030.0,105020.0,0.46422751]
[1734487297513,0.40248093,105030.0,105020.0,0.058602]
[1734487297717,0.047598,105030.0,105020.0,0.058602]
[1734487298426,0.408398,105030.0,105020.0,0.058602]
[1734487298829,0.408398,105030.0,105020.0,0.011]
[1734487299217,0.408398,105030.0,105020.0,0.058602]
[1734487299416,0.3548853,105030.0,105020.0,0.058602]
[1734487300110,0.4024833,105030.0,105020.0,0.058602]
[1734487300706,0.047598,105030.0,105020.0,0.058602]
[1734487300902,0.5370476,105040.0,105020.0,0.058602]
[1734487301093,0.047598,105030.0,105020.0,0.058602]
[1734487301408,0.57493528,105040.0,105020.0,0.058602]
[1734487301889,0.57493528,105040.0,105020.0,0.057602]
[1734487302095,0.11859843,105030.0,105020.0,0.058602]
[1734487302901,0.52699243,105040.0,105020.0,0.058602]
[1734487304201,0.3608,105030.0,105020.0,0.058602]
[1734487305492,0.52699243,105040.0,105020.0,0.058602]
[1734487306198,0.52699243,105040.0,105020.0,0.011]
[1734487306506,0.16618343,105060.0,105040.0,0.047592]
[1734487306689,0.40991519,105070.0,105050.0,0.408389]
[1734487307002,0.52851362,105070.0,105050.0,0.408389]
[1734487307402,0.52851362,105070.0,105050.0,0.047589]
[1734487308118,0.408385,105060.0,105040.0,0.98510038]
[1734487308402,0.408385,105060.0,105050.0,0.09633298]
[1734487308596,0.408385,105060.0,105050.0,0.09733298]
[1734487308796,0.408385,105060.0,105050.0,0.001]
[1734487309010,0.52698343,105060.0,105050.0,0.001]
[1734487309303,0.16618343,105060.0,105050.0,0.048589]
[1734487309700,0.16618343,105060.0,105050.0,0.14492198]
[1734487309899,0.52698343,105060.0,105050.0,0.14492198]
[1734487310210,0.52698343,105060.0,105050.0,0.09633298]
[1734487310501,0.82698343,105060.0,105050.0,0.09633298]
[1734487310908,0.82698343,105060.0,105050.0,0.09733298]
[1734487311206,0.82698343,105060.0,105050.0,0.001]
[1734487311403,0.82698343,105060.0,105050.0,0.09733298]
[1734487312495,0.52698343,105060.0,105050.0,0.001]
[1734487316306,0.52698343,105060.0,105050.0,0.09733298]
[1734487316711,0.46158722,105060.0,105050.0,0.09733298]
[1734487316930,0.50917622,105060.0,105050.0,0.09733298]
[1734487317129,0.45567274,105060.0,105050.0,0.60830838]
[1734487317324,0.45567274,105060.0,105050.0,0.09733298]
[1734487317725,0.45567274,105060.0,105050.0,0.001]
[1734487318627,0.408389,105060.0,105050.0,0.048589]
[1734487318828,0.408389,105060.0,105050.0,0.058589]
[1734487319031,0.52698743,105060.0,105050.0,0.058589]
[1734487319337,0.47939843,105060.0,105050.0,0.15492198]
[1734487319525,0.3608,105060.0,105050.0,0.38332198]
[1734487320028,0.52698243,105060.0,105050.0,0.38332198]
[1734487320225,0.52698243,105060.0,105050.0,0.10733298]
[1734487320626,0.52698243,105060.0,105050.0,0.10633298]
[1734487320932,0.52698243,105060.0,105050.0,0.011]
[1734487322230,0.82698243,105060.0,105050.0,0.011]
[1734487322936,0.53636475,105060.0,105050.0,0.011]
[1734487323122,0.52698243,105060.0,105050.0,0.011]
[1734487323730,0.52698243,105060.0,105050.0,0.10633298]
[1734487324537,0.52698243,105060.0,105050.0,0.01]
[1734487324922,0.82698243,105060.0,105050.0,0.01]
[1734487325831,0.52698243,105060.0,105050.0,0.01]
[1734487326839,0.52698243,105060.0,105050.0,0.10633298]
[1734487327147,0.11859843,105060.0,105050.0,0.15392198]
[1734487327322,0.36090544,105070.0,105060.0,0.047584]
[1734487327523,0.00010544,105070.0,105060.0,0.62121698]
[1734487328744,0.00010544,105070.0,105060.0,0.62221698]
[1734487329033,0.40838435,105070.0,105060.0,0.21383298]
[1734487329237,0.40838435,105070.0,105060.0,0.78158342]
[1734487329238,0.04758435,105070.0,105060.0,0.78158342]
[1734487329437,0.04758435,105070.0,105060.0,0.09733298]
[1734487329637,0.52698278,105070.0,105060.0,0.001]
[1734487329933,0.94268278,105070.0,105060.0,0.001]
[1734487330137,0.94268278,105070.0,105060.0,0.00107551]
[1734487330633,0.64268278,105070.0,105060.0,0.00107551]
[1734487331537,0.94268278,105070.0,105060.0,0.001]
[1734487332248,0.64268278,105070.0,105060.0,0.001]
[1734487332531,0.52698278,105070.0,105060.0,0.001]
[1734487332739,0.04758435,105070.0,105060.0,0.14491698]
[1734487332927,0.04758435,105070.0,105060.0,0.6090339]
[1734487333129,0.52698278,105070.0,105060.0,0.09733298]
[1734487333940,0.52698278,105070.0,105060.0,0.001]
[1734487334238,0.52698278,105070.0,105060.0,0.09733298]
[1734487334639,0.82698278,105070.0,105060.0,0.09733298]
[1734487334838,0.52698278,105070.0,105060.0,0.09733298]
[1734487335029,0.82698278,105070.0,105060.0,0.09733298]
[1734487335338,0.52698278,105070.0,105060.0,0.09733298]
[1734487335538,0.82698278,105070.0,105060.0,0.09733298]
[1734487336034,0.82698278,105070.0,105050.0,0.01]
[1734487336253,0.52698243,105060.0,105040.0,0.01]
[1734487336537,0.047593,105040.0,105020.0,0.56775044]
[1734487336748,0.88779643,105030.0,105020.0,0.09678105]
[1734487337130,0.047602,105020.0,105010.0,0.09010881]
[1734487337325,0.52700043,105020.0,105010.0,0.06910881]
[1734487337541,0.047607,105010.0,105000.0,0.01]
[1734487337742,0.52700543,105010.0,105000.0,0.01]
[1734487338335,0.047611,105000.0,104990.0,0.2297]
[1734487338534,0.408411,105000.0,104990.0,0.2297]
[1734487340642,0.3608,105020.0,105000.0,0.047611]
[1734487340846,0.408407,105020.0,105000.0,0.047611]
[1734487341035,0.047609,105010.0,104990.0,0.638116]
[1734487341834,0.408409,105010.0,104990.0,0.277316]
[1734487342034,0.408409,105010.0,104990.0,0.5905]
[1734487342035,0.047611,105000.0,104990.0,0.5905]
[1734487343037,0.047616,104990.0,104980.0,1.02407233]
[1734487343243,0.408416,104990.0,104980.0,1.02311233]
[1734487343532,0.408412,105000.0,104980.0,1.07073133]
[1734487343742,0.16621043,105000.0,104990.0,0.2249]
[1734487344550,0.047612,105000.0,104990.0,0.2249]
[1734487344951,0.52700543,105010.0,104990.0,0.633315]
[1734487345151,0.16620543,105010.0,104990.0,0.633315]
[1734487345346,0.11859843,105010.0,104990.0,0.5857]
[1734487345649,0.3608,105020.0,105000.0,0.3608]
[1734487345854,0.52842581,105030.0,105000.0,0.3608]
[1734487345855,0.12002781,105030.0,105010.0,0.3608]
[1734487346186,0.12002781,105030.0,105020.0,0.738302]
[1734487346878,0.16618743,105050.0,105030.0,0.047595]
[1734487347070,0.047585,105060.0,105040.0,0.408393]
[1734487347474,0.047585,105060.0,105050.0,0.2209]
[1734487347670,0.047585,105060.0,105050.0,0.5817]
[1734487348369,0.49797448,105070.0,105050.0,0.5817]
[1734487348675,0.54555448,105070.0,105050.0,0.5817]
[1734487349074,0.52698278,105070.0,105050.0,0.5817]
[1734487349474,0.16618243,105060.0,105050.0,0.2209]
[1734487349681,0.52698243,105060.0,105050.0,0.2209]
[1734487349869,0.047594,105040.0,105030.0,0.1082]
[1734487350068,0.16619243,105040.0,105030.0,0.1082]
[1734487350472,0.52699243,105040.0,105030.0,0.1082]
[1734487352486,0.047598,105030.0,105020.0,0.109]
[1734487352782,0.52699243,105040.0,105020.0,0.274602]
[1734487353183,0.52699243,105040.0,105020.0,0.635402]
[1734487353184,0.047594,105040.0,105020.0,0.635402]
[1734487353785,0.3608,105050.0,105030.0,0.3608]
[1734487353977,0.3608,105050.0,105030.0,0.408394]
[1734487354283,0.408389,105050.0,105030.0,0.408394]
[1734487354690,0.3608,105060.0,105040.0,0.408393]
[1734487354885,0.40838535,105070.0,105050.0,0.1147]
[1734487355176,0.40838535,105070.0,105050.0,0.2322]
[1734487356085,0.40838535,105070.0,105060.0,0.047584]
[1734487356086,0.36080435,105070.0,105060.0,0.047584]
[1734487358166,4.35e-06,105070.0,105060.0,0.047584]
[1734487358371,4.35e-06,105070.0,105060.0,0.408384]
[1734487358582,0.40979509,105100.0,105060.0,0.82698243]
[1734487358779,0.40979509,105100.0,105080.0,0.047575]
[1734487359187,0.40979509,105100.0,105080.0,0.271375]
[1734487359392,0.04899509,105100.0,105080.0,0.271375]
[1734487360281,0.04899509,105100.0,105080.0,0.2238]
[1734487360485,0.40979509,105100.0,105080.0,0.2238]
[1734487360692,0.047571,105090.0,105080.0,0.2238]
[1734487360994,0.47939843,105090.0,105060.0,0.3608]
[1734487361285,0.047581,105070.0,105050.0,0.627588]
[1734487361685,0.408381,105070.0,105050.0,0.266788]
[1734487361894,0.408381,105070.0,105030.0,1.33736903]
[1734487361895,0.047589,105050.0,105030.0,0.409357]
[1734487362197,0.047593,105040.0,105030.0,0.3608]
[1734487362787,0.408393,105040.0,105020.0,1.13700172]